{"text_format":"1","workbook":"xlsx","n_sheets":3,"sheets":["spec","K8V","note"],"not_rendered":{"charts":0,"images":2,"macros":1,"external_links":0,"defined_names":15,"comments":0,"pivot_tables":0},"unopened":[],"bounds":{"document_bytes":16777216,"sheet_cells":100000,"rows_first":2000,"rows_last":500,"rows_between":2000,"halvings":0,"cell_chars":16384,"cell_head_chars":4096},"cells_cut":0,"cells_raw":0,"read":"whole","date_system":"1900"}

{"sheet":"spec","index":0,"n_rows":157,"n_cols":34,"rows_kept":157,"cut":false,"hidden":true,"merged":[[110,28,110,29],[110,30,110,31],[104,3,104,17],[110,2,110,17],[86,3,86,17],[87,3,87,17],[91,2,91,17],[96,3,96,17],[97,3,97,17],[98,3,98,17],[25,3,25,17],[26,3,26,17],[27,3,27,17],[28,3,28,17],[29,3,29,17],[30,3,30,17],[37,3,37,17],[68,2,68,17],[76,2,76,17],[81,2,81,17],[31,3,31,17],[32,3,32,17],[33,3,33,17],[34,3,34,17],[35,3,35,17],[36,3,36,17],[82,3,82,17],[83,3,83,17],[93,3,93,17],[94,3,94,17],[95,3,95,17],[85,3,85,17],[84,3,84,17]]}
[]
["　　　Pump Options"]
[]
["Model","K8V",125,"A","R","D1","A1","A","B","B","X","X","X","X","-","P1","D","C","B","-",1]
["Code",1,2,3,4,5,6,7,8,9,10,11,12,13,null,14,15,16,17,null,18]
[]
[1,null,"K8V Series Pump"]
[null,null,"K8V Series, Variable Displacement, Axial Piston, Closed Loop Pump"]
[]
[2,null,"Size",null,null,null,null,null,null,null,null,null,null,null,null,null,null,null,71,90,125]
[null,null," Pump Size ",null,null,null,null,null,null,null,null,null,null,null,null,null,null,null,"●","●","●"]
[]
[3,null,"Model Code",null,null,null,null,null,null,null,null,null,null,null,null,null,null,null,71,90,125]
[null,null,"A"," Series A",null,null,null,null,null,null,null,null,null,null,null,null,null,null,"●","●","●"]
[]
[4,null,"Direction of Rotation",null,null,null,null,null,null,null,null,null,null,null,null,null,null,null,71,90,125]
[null,null,"R"," Clockwise",null,null,null,null,null,null,null,null,null,null,null,null,null,null,"●","●","●"]
[null,null,"L"," Counterclockwise ",null,null,null,null,null,null,null,null,null,null,null,null,null,null,"●","●","●"]
[]
[5,null,"Mounting Flange and Shaft ",null,null,null,null,null,null,null,null,null,null,null,null,null,null,null,71,90,125]
[null,null,"C1"," SAE C Mount & SAE C  Shaft (14T-12/24DP )",null,null,null,null,null,null,null,null,null,null,null,null,null,null,"●","-","-",null,null,null,null,"C1",{"$f":"HLOOKUP(K8V!$R$42,spec!$S$20:$U$23,2,0)","v":"●"},{"$f":"VLOOKUP(K8V!R48,Z21:AA23,2,0)","v":"●"}]
[null,null,"D1"," SAE D Mount & SAE D Shaft (13T-8/16DP )",null,null,null,null,null,null,null,null,null,null,null,null,null,null,"-","●","●",null,null,null,null,"D1",{"$f":"HLOOKUP(K8V!$R$42,spec!$S$20:$U$23,3,0)","v":"-"}]
[null,null,"D2"," SAE D Mount & SAE F Shaft (15T-8/16DP )",null,null,null,null,null,null,null,null,null,null,null,null,null,null,"-","-","●",null,null,null,null,"D2",{"$f":"HLOOKUP(K8V!$R$42,spec!$S$20:$U$23,4,0)","v":"-"}]
[]
[6,null,"Through Drive",null,null,null,null,null,null,null,null,null,null,null,null,null,null,null,71,90,125]
[null,null,"A1"," SAE A, 2 bolt, Through Drive (9T-16/32DP )",null,null,null,null,null,null,null,null,null,null,null,null,null,null,"●","●","●",null,null,null,null,"A1",{"$f":"HLOOKUP(K8V!$R$42,spec!$S$25:$U$38,2,0)","v":"●"},{"$f":"VLOOKUP(K8V!R51,Z26:AA38,2,0)","v":"●"}]
[null,null,"B1"," SAE B, 2 bolt, Through Drive (13T-16/32DP )",null,null,null,null,null,null,null,null,null,null,null,null,null,null,"●","●","●",null,null,null,null,"B1",{"$f":"HLOOKUP(K8V!$R$42,spec!$S$25:$U$38,3,0)","v":"●"}]
[null,null,"B2"," SAE BB, 2 bolt, Through Drive (15T-16/32DP)",null,null,null,null,null,null,null,null,null,null,null,null,null,null,"●","●","●",null,null,null,null,"B2",{"$f":"HLOOKUP(K8V!$R$42,spec!$S$25:$U$38,4,0)","v":"●"}]
[null,null,"C1"," SAE C,  2/4 bolt, Through Drive (14T-12/24DP )",null,null,null,null,null,null,null,null,null,null,null,null,null,null,"●","●","●",null,null,null,null,"C1",{"$f":"HLOOKUP(K8V!$R$42,spec!$S$25:$U$38,5,0)","v":"●"}]
[null,null,"C2"," SAE CC, 2/4 bolt, Through Drive (17T-12/24DP)",null,null,null,null,null,null,null,null,null,null,null,null,null,null,"-","●","●",null,null,null,null,"C2",{"$f":"HLOOKUP(K8V!$R$42,spec!$S$25:$U$38,6,0)","v":"-"}]
[null,null,"D1"," SAE D, 2/4 bolt, Through Drive (13T-8/16DP )",null,null,null,null,null,null,null,null,null,null,null,null,null,null,"-","●","●",null,null,null,null,"D1",{"$f":"HLOOKUP(K8V!$R$42,spec!$S$25:$U$38,7,0)","v":"-"}]
[null,null,"AJ"," SAE A, 2 bolt, Through Drive (9T-16/32DP ) Covered with Steel Plate",null,null,null,null,null,null,null,null,null,null,null,null,null,null,"●","●","●",null,null,null,null,"AJ",{"$f":"HLOOKUP(K8V!$R$42,spec!$S$25:$U$38,8,0)","v":"●"}]
[null,null,"BJ"," SAE B, 2 bolt, Through Drive (13T-16/32DP )   Covered with Steel Plate",null,null,null,null,null,null,null,null,null,null,null,null,null,null,"●","●","●",null,null,null,null,"BJ",{"$f":"HLOOKUP(K8V!$R$42,spec!$S$25:$U$38,9,0)","v":"●"}]
[null,null,"BK"," SAE BB, 2 bolt, Through Drive (15T-16/32DP)   Covered with Steel Plate",null,null,null,null,null,null,null,null,null,null,null,null,null,null,"●","●","●",null,null,null,null,"BK",{"$f":"HLOOKUP(K8V!$R$42,spec!$S$25:$U$38,10,0)","v":"●"}]
[null,null,"CJ"," SAE C,  2/4 bolt, Through Drive (14T-12/24DP )   Covered with Steel Plate",null,null,null,null,null,null,null,null,null,null,null,null,null,null,"●","●","●",null,null,null,null,"CJ",{"$f":"HLOOKUP(K8V!$R$42,spec!$S$25:$U$38,11,0)","v":"●"}]
[null,null,"CK"," SAE CC, 2/4 bolt, Through Drive (17T-12/24DP)   Covered with Steel Plate",null,null,null,null,null,null,null,null,null,null,null,null,null,null,"-","●","●",null,null,null,null,"CK",{"$f":"HLOOKUP(K8V!$R$42,spec!$S$25:$U$38,12,0)","v":"-"}]
[null,null,"DJ"," SAE D, 2/4 bolt, Through Drive (13T-8/16DP )    Covered with Steel Plate",null,null,null,null,null,null,null,null,null,null,null,null,null,null,"-","●","●",null,null,null,null,"DJ",{"$f":"HLOOKUP(K8V!$R$42,spec!$S$25:$U$38,13,0)","v":"-"}]
[null,null,"X"," Without Through Drive",null,null,null,null,null,null,null,null,null,null,null,null,null,null,"●","●","●",null,null,null,null,"X",{"$f":"HLOOKUP(K8V!$R$42,spec!$S$25:$U$38,14,0)","v":"●"}]
[]
[7,null,"Thread Type(Suction/Delivery)"]
[null,null,null," Type of Threaded Port",null,null,null,null,null,null," Thread Type for Flange Port",null,null,null,null,null,null,null,71,90,125]
[null,null,"A"," Unified",null,null,null,null,null,null," Metric ",null,null,null,null,null,null,null,"●","●","●",null,null,null,null,"A",{"$f":"HLOOKUP(K8V!$R$42,spec!$S$41:$U$43,2,0)","v":"●"},{"$f":"VLOOKUP(K8V!R64,Z42:AA43,2,0)","v":"●"}]
[null,null,"C"," Unified",null,null,null,null,null,null,"Unified",null,null,null,null,null,null,null,"●","●","●",null,null,null,null,"C",{"$f":"HLOOKUP(K8V!$R$42,spec!$S$41:$U$43,3,0)","v":"●"}]
[]
[8,null,"Charge Pump",null,null,null,null,null,null,null,null,null,null,null,null,null,null,null,71,90,125]
[null,null,"A"," 20cc",null,null,null,null,null,null,null,null,null,null,null,null,null,null,"●","●","-",null,null,null,null,"A",{"$f":"HLOOKUP(K8V!$R$42,spec!$S$45:$U$48,2,0)","v":"●"},{"$f":"VLOOKUP(K8V!R67,Z46:AA48,2,0)","v":"●"}]
[null,null,"B"," 28cc",null,null,null,null,null,null,null,null,null,null,null,null,null,null,"●","●","●",null,null,null,null,"B",{"$f":"HLOOKUP(K8V!$R$42,spec!$S$45:$U$48,3,0)","v":"●"}]
[null,null,"X"," Without Integrated Charge Pump",null,null,null,null,null,null,null,null,null,null,null,null,null,null,"●","●","●",null,null,null,null,"X",{"$f":"HLOOKUP(K8V!$R$42,spec!$S$45:$U$48,4,0)","v":"●"}]
[]
[9,null,"Stroking Speed Control Orifice",null,null,null,null,null,null,null,null,null,null,null,null,null,null,null,71,90,125]
[null,null,"A"," Φ0.8",null,null,null,null,null,null,null,null,null,null,null,null,null,null,"●","-","●",null,null,null,null,"A",{"$f":"HLOOKUP(K8V!$R$42,spec!$S$50:$U$55,2,0)","v":"●"},{"$f":"VLOOKUP(K8V!R70,Z51:AA55,2,0)","v":"●"}]
[null,null,"B"," Φ1.0",null,null,null,null,null,null,null,null,null,null,null,null,null,null,"●","●","●",null,null,null,null,"B",{"$f":"HLOOKUP(K8V!$R$42,spec!$S$50:$U$55,3,0)","v":"●"}]
[null,null,"C"," Φ1.2",null,null,null,null,null,null,null,null,null,null,null,null,null,null,"●","●","●",null,null,null,null,"C",{"$f":"HLOOKUP(K8V!$R$42,spec!$S$50:$U$55,4,0)","v":"●"}]
[null,null,"D"," Φ1.4",null,null,null,null,null,null,null,null,null,null,null,null,null,null,"-","●","-",null,null,null,null,"D",{"$f":"HLOOKUP(K8V!$R$42,spec!$S$50:$U$55,5,0)","v":"-"}]
[null,null,"X"," Without Orifice",null,"Available Only with Code X of Low Pressure Relief Valve [16]",null,null,null,null,null,null,null,null,null,null,null,null,"●","●","●",null,null,null,null,"X",{"$f":"HLOOKUP(K8V!$R$42,spec!$S$50:$U$55,6,0)","v":"●"}]
[]
[10,null,"Mechanical Stroke Limiter",null,null,null,null,null,null,null,null,null,null,null,null,null,null,null,71,90,125]
[null,null,"X"," Without Mechanical Stroke Limiter",null,null,null,null,null,null,null,null,null,null,null,null,null,null,"●","●","●",null,null,null,null,"X",{"$f":"HLOOKUP(K8V!$R$42,spec!$S$57:$U$58,2,0)","v":"●"},{"$f":"VLOOKUP(K8V!R75,Z58:AA58,2,0)","v":"●"}]
[]
[11,null,"Filtration Options",null,null,null,null,null,null,null,null,null,null,null,null,null,null,null,71,90,125]
[null,null,"B"," Remote Boost Pressure Filtration with Ports for External Charge Circuit Filter",null,null,null,null,null,null,null,null,null,null,null,null,null,null,"●","●","●",null,null,null,null,"B",{"$f":"HLOOKUP(K8V!$R$42,spec!$S$60:$U$62,2,0)","v":"●"},{"$f":"VLOOKUP(K8V!R78,Z61:AA62,2,0)","v":"●"}]
[null,null,"X"," Without Pressure Filtration",null,null,null,null,null,null,null,null,null,null,null,null,null,null,"●","●","●",null,null,null,null,"X",{"$f":"HLOOKUP(K8V!$R$42,spec!$S$60:$U$62,3,0)","v":"●"}]
[]
[12,null,"Swivel Angle Sensor",null,null,null,null,null,null,null,null,null,null,null,null,null,null,null,71,90,125]
[null,null,"X"," Without Swivel Angle Sensor",null,null,null,null,null,null,null,null,null,null,null,null,null,null,"●","●","●"]
[]
[13,null,"Special Features",null,null,null,null,null,null,null,null,null,null,null,null,null,null,null,71,90,125]
[null,null,"X"," Without Any Special Feature ",null,null,null,null,null,null,null,null,null,null,null,null,null,null,"●","●","●"]
[null,null,"● ＝ Available　　　　○ ＝ Under development　　　　- ＝ Not available"]
[]
[]
["　　　　Regulator Options"]
[]
["Model","K8V",125,"A","R","D1","A1","A","B","B","X","X","X","X","-","P1","D","C","B","-",1]
["Code",1,2,3,4,5,6,7,8,9,10,11,12,13,null,14,15,16,17,null,18]
[]
[14,null,"Control Option",null,null,null,null,null,null,null,null,null,null,null,null,null,null,null,71,90,125]
[null,null,"P1","Electronic Proportional Displacement Control (24V)",null,null,null,null,null,null,null,null,null,null,null,null,null,null,"●","●","●",null,null,null,null,"P1",{"$f":"HLOOKUP(K8V!$R$42,spec!$S$77:$U$80,2,0)","v":"●"},{"$f":"VLOOKUP(K8V!R80,Z78:AA80,2,0)","v":"●"}]
[null,null,"P2","Electronic Proportional Displacement Control (12V)",null,null,null,null,null,null,null,null,null,null,null,null,null,null,"●","●","●",null,null,null,null,"P2",{"$f":"HLOOKUP(K8V!$R$42,spec!$S$77:$U$80,3,0)","v":"●"}]
[null,null,"P3","Hydraulic  Proportional Displacement Control",null,null,null,null,null,null,null,null,null,null,null,null,null,null,"●","●","●",null,null,null,null,"P3",{"$f":"HLOOKUP(K8V!$R$42,spec!$S$77:$U$80,4,0)","v":"●"}]
[]
[15,null,"High Pressure Relief Valve",null,null,null,null,null,null,null,null,null,null,null,null,null,null,null,71,90,125]
[null,null,"K",20,null,null,null,null,null,null,null,null,null,null,null,null,null,null,"●","●","●",null,null,null,null,"K",{"$f":"HLOOKUP(K8V!$R$42,spec!$S$82:$U$90,2,0)","v":"●"},20,{"$f":"VLOOKUP(K8V!R83,Z83:AA90,2,0)","v":"●"},{"$f":"VLOOKUP(K8V!R83,Z83:AB90,3,0)","v":35}]
[null,null,"L",25,null,null,null,null,null,null,null,null,null,null,null,null,null,null,"●","●","●",null,null,null,null,"L",{"$f":"HLOOKUP(K8V!$R$42,spec!$S$82:$U$90,3,0)","v":"●"},25]
[null,null,"A",30,null,null,null,null,null,null,null,null,null,null,null,null,null,null,"●","●","●",null,null,null,null,"A",{"$f":"HLOOKUP(K8V!$R$42,spec!$S$82:$U$90,4,0)","v":"●"},30]
[null,null,"B",35,null,null,null,null,null,null,null,null,null,null,null,null,null,null,"●","●","●",null,null,null,null,"B",{"$f":"HLOOKUP(K8V!$R$42,spec!$S$82:$U$90,5,0)","v":"●"},35]
[null,null,"C",40,null,null,null,null,null,null,null,null,null,null,null,null,null,null,"●","●","●",null,null,null,null,"C",{"$f":"HLOOKUP(K8V!$R$42,spec!$S$82:$U$90,6,0)","v":"●"},40]
[null,null,"D",45,null,null,null,null,null,null,null,null,null,null,null,null,null,null,"●","●","●",null,null,null,null,"D",{"$f":"HLOOKUP(K8V!$R$42,spec!$S$82:$U$90,7,0)","v":"●"},45]
[null,null,"E","50 MPa",null,null,null,null,null,null,null,null,null,null,null,null,null,null,"●","●","●",null,null,null,null,"E",{"$f":"HLOOKUP(K8V!$R$42,spec!$S$82:$U$90,8,0)","v":"●"},50]
[null,null,"S","Customized Pressure Setting for Special Case",null,null,null,null,null,null,null,null,null,null,null,null,null,null,"●","●","●",null,null,null,null,"S",{"$f":"HLOOKUP(K8V!$R$42,spec!$S$82:$U$90,9,0)","v":"●"},100]
[]
[16,null,"Pressure Cut-Off Valve"]
[null,null,"Note: The pressure setting of cut-off valve must be at least 5MPa lower than the pressure setting of high relief valve.",null,null,null,null,null,null,null,null,null,null,null,null,null,null,null,71,90,125]
[null,null,"J",15,null,null,null,null,null,null,null,null,null,null,null,null,null,null,"●","●","●",null,null,null,null,"J",{"$f":"HLOOKUP(K8V!$R$42,spec!$S$93:$U$102,2,0)","v":"●"},15,{"$f":"VLOOKUP(K8V!R91,Z94:AA102,2,0)","v":"●"},{"$f":"VLOOKUP(K8V!R91,Z94:AB102,3,0)","v":30},null,0,"OK"]
[null,null,"K",20,null,null,null,null,null,null,null,null,null,null,null,null,null,null,"●","●","●",null,null,null,null,"K",{"$f":"HLOOKUP(K8V!$R$42,spec!$S$93:$U$102,3,0)","v":"●"},20,null,null,null,1,"エラー"]
[null,null,"L",25,null,null,null,null,null,null,null,null,null,null,null,null,null,null,"●","●","●",null,null,null,null,"L",{"$f":"HLOOKUP(K8V!$R$42,spec!$S$93:$U$102,4,0)","v":"●"},25]
[null,null,"A",30,null,null,null,null,null,null,null,null,null,null,null,null,null,null,"●","●","●",null,null,null,null,"A",{"$f":"HLOOKUP(K8V!$R$42,spec!$S$93:$U$102,5,0)","v":"●"},30]
[null,null,"B",35,null,null,null,null,null,null,null,null,null,null,null,null,null,null,"●","●","●",null,null,null,null,"B",{"$f":"HLOOKUP(K8V!$R$42,spec!$S$93:$U$102,6,0)","v":"●"},35]
[null,null,"C",40,null,null,null,null,null,null,null,null,null,null,null,null,null,null,"●","●","●",null,null,null,null,"C",{"$f":"HLOOKUP(K8V!$R$42,spec!$S$93:$U$102,7,0)","v":"●"},40]
[null,null,"D","42 MPa",null,null,null,null,null,null,null,null,null,null,null,null,null,null,"●","●","●",null,null,null,null,"D",{"$f":"HLOOKUP(K8V!$R$42,spec!$S$82:$U$90,8,0)","v":"●"},42]
[null,null,"S","Customized Pressure Setting for Special Case",null,null,null,null,null,null,null,null,null,null,null,null,null,null,"●","●","●",null,null,null,null,"S",{"$f":"HLOOKUP(K8V!$R$42,spec!$S$93:$U$102,9,0)","v":"●"},100]
[null,null,"X","Without Pressure Cut-Off Valve",null,null,null,null,null,null,null,null,null,null,null,null,null,null,"●","●","●",null,null,null,null,"X",{"$f":"HLOOKUP(K8V!$R$42,spec!$S$93:$U$102,10,0)","v":"●"},0,null,{"$f":"IF(AD83>AD94,0,1)","v":0}]
[]
[17,null,"Low Pressure Relief Valve",null,null,null,null,null,null,null,null,null,null,null,null,null,null,null,71,90,125]
[null,null,"B",2.5,null,null,null,null,null,null,null,null,null,null,null,null,null,null,"●","●","●",null,null,null,null,"B",{"$f":"HLOOKUP(K8V!$R$42,spec!$S$104:$U$107,2,0)","v":"●"},{"$f":"VLOOKUP(K8V!R100,Z105:AA107,2,0)","v":"●"}]
[null,null,"S","Customized Pressure Setting for Special Case",null,null,null,null,null,null,null,null,null,null,null,null,null,null,"●","●","●",null,null,null,null,"S",{"$f":"HLOOKUP(K8V!$R$42,spec!$S$104:$U$107,3,0)","v":"●"}]
[null,null,"X","Without Low Pressure Relief Valve",null,null,null,null,null,null,null,null,null,null,null,null,null,null,"●","●","●",null,null,null,null,"X",{"$f":"HLOOKUP(K8V!$R$42,spec!$S$104:$U$107,4,0)","v":"●"}]
[]
[18,null,"Design Code"]
[null,null,"**","01~"]
[null,null,"● ＝ Available　　　　○ ＝ Under development　　　　- ＝ Not available",null,null,null,null,null,null,null,null,null,null,null,null,null,null,null,null,null,null,null,null,null,null,null,null,null,"w/ 20cc or w/o",null,"w/ 28cc"]
[null,null,null,null,null,null,null,null,null,null,null,null,null,null,null,null,null,null,null,null,null,null,null,null,null,null,"max dis","min dis","Rated sp","Max sp","Rated sp","Max sp","Rated pres","Max pres"]
[null,null,null,null,null,null,null,null,null,null,null,null,null,null,null,null,null,null,null,null,null,null,null,null,null,71,71,56,3300,4100,3050,3450,42,50]
[null,null,null,null,null,null,null,null,null,null,null,null,null,null,null,null,null,null,null,null,null,null,null,null,null,90,90,71,3050,3800,3050,3450,42,50]
[null,null,null,null,null,null,null,null,null,null,null,null,null,null,null,null,null,null,null,null,null,null,null,null,null,125,130,90,2850,3450,2850,3450,42,50]
[null,null,null,null,null,null,null,null,null,null,null,null,null,null,null,null,null,null,null,null,null,null,null,null,null,null,{"$f":"VLOOKUP(K8V!R42,Z112:AA115,2,)","v":71},{"$f":"VLOOKUP(K8V!R42,Z112:AB115,3,)","v":56},{"$f":"IF(K8V!R67=\"B\",VLOOKUP(K8V!R42,Z112:AE115,6,),VLOOKUP(K8V!R42,Z112:AC115,4,))","v":3300},{"$f":"IF(K8V!R67=\"B\",VLOOKUP(K8V!R42,Z112:AF115,7,),VLOOKUP(K8V!R42,Z112:AD115,5,))","v":4100},null,null,{"$f":"VLOOKUP(K8V!R42,Z112:AG115,8,)","v":42},{"$f":"VLOOKUP(K8V!R42,Z112:AH115,9,)","v":50}]
[]
[null,null,null,null,null,null,null,null,null,null,null,null,null,null,null,null,null,null,null,null,null,null,null,null,null,null,{"$f":"VLOOKUP(K8V!R48,Z119:AA122,2,0)","v":600},null,{"$f":"VLOOKUP(K8V!R42,AB119:AC121,2,0)","v":100},null,{"$f":"VLOOKUP(K8V!R51,AD119:AE131,2,0)","v":1},null,{"$f":"VLOOKUP(AC118+AE118,AF119:AG157,2,0)","v":123}]
[null,null,null,null,null,null,null,null,null,null,null,null,null,null,null,null,null,null,null,null,null,null,null,null,null,"C1",{"$f":"600","v":600},71,100,"A1",1,101,{"$f":"123","v":123}]
[null,null,null,null,null,null,null,null,null,null,null,null,null,null,null,null,null,null,null,null,null,null,null,null,null,"C2",{"$f":"1070","v":1070},90,200,"B1",2,102,{"$f":"395","v":395}]
[null,null,null,null,null,null,null,null,null,null,null,null,null,null,null,null,null,null,null,null,null,null,null,null,null,"D1",{"$f":"1470","v":1470},125,300,"B2",3,103,{"$f":"455","v":455}]
[null,null,null,null,null,null,null,null,null,null,null,null,null,null,null,null,null,null,null,null,null,null,null,null,null,"D2",{"$f":"2250","v":2250},null,null,"C1",4,104,475]
[null,null,null,null,null,null,null,null,null,null,null,null,null,null,null,null,null,null,null,null,null,null,null,null,null,"D2",{"$f":"2250","v":2250},null,null,"C2",5,105,"-"]
[null,null,null,null,null,null,null,null,null,null,null,null,null,null,null,null,null,null,null,null,null,null,null,null,null,null,null,null,null,"D1",6,106,"-"]
[null,null,null,null,null,null,null,null,null,null,null,null,null,null,null,null,null,null,null,null,null,null,null,null,null,null,null,null,null,"AJ",7,107,{"$f":"123","v":123}]
[null,null,null,null,null,null,null,null,null,null,null,null,null,null,null,null,null,null,null,null,null,null,null,null,null,null,null,null,null,"BJ",8,108,{"$f":"395","v":395}]
[null,null,null,null,null,null,null,null,null,null,null,null,null,null,null,null,null,null,null,null,null,null,null,null,null,null,null,null,null,"BK",9,109,{"$f":"455","v":455}]
[null,null,null,null,null,null,null,null,null,null,null,null,null,null,null,null,null,null,null,null,null,null,null,null,null,null,null,null,null,"CJ",10,110,475]
[null,null,null,null,null,null,null,null,null,null,null,null,null,null,null,null,null,null,null,null,null,null,null,null,null,null,null,null,null,"CK",11,111,"-"]
[null,null,null,null,null,null,null,null,null,null,null,null,null,null,null,null,null,null,null,null,null,null,null,null,null,null,null,null,null,"DJ",12,112,"-"]
[null,null,null,null,null,null,null,null,null,null,null,null,null,null,null,null,null,null,null,null,null,null,null,null,null,null,null,null,null,"X",13,113,"-"]
[null,null,null,null,null,null,null,null,null,null,null,null,null,null,null,null,null,null,null,null,null,null,null,null,null,null,null,null,null,null,null,201,123]
[null,null,null,null,null,null,null,null,null,null,null,null,null,null,null,null,null,null,null,null,null,null,null,null,null,null,null,null,null,null,null,202,395]
[null,null,null,null,null,null,null,null,null,null,null,null,null,null,null,null,null,null,null,null,null,null,null,null,null,null,null,null,null,null,null,203,575]
[null,null,null,null,null,null,null,null,null,null,null,null,null,null,null,null,null,null,null,null,null,null,null,null,null,null,null,null,null,null,null,204,575]
[null,null,null,null,null,null,null,null,null,null,null,null,null,null,null,null,null,null,null,null,null,null,null,null,null,null,null,null,null,null,null,205,575]
[null,null,null,null,null,null,null,null,null,null,null,null,null,null,null,null,null,null,null,null,null,null,null,null,null,null,null,null,null,null,null,206,605]
[null,null,null,null,null,null,null,null,null,null,null,null,null,null,null,null,null,null,null,null,null,null,null,null,null,null,null,null,null,null,null,207,123]
[null,null,null,null,null,null,null,null,null,null,null,null,null,null,null,null,null,null,null,null,null,null,null,null,null,null,null,null,null,null,null,208,395]
[null,null,null,null,null,null,null,null,null,null,null,null,null,null,null,null,null,null,null,null,null,null,null,null,null,null,null,null,null,null,null,209,575]
[null,null,null,null,null,null,null,null,null,null,null,null,null,null,null,null,null,null,null,null,null,null,null,null,null,null,null,null,null,null,null,210,575]
[null,null,null,null,null,null,null,null,null,null,null,null,null,null,null,null,null,null,null,null,null,null,null,null,null,null,null,null,null,null,null,211,575]
[null,null,null,null,null,null,null,null,null,null,null,null,null,null,null,null,null,null,null,null,null,null,null,null,null,null,null,null,null,null,null,212,605]
[null,null,null,null,null,null,null,null,null,null,null,null,null,null,null,null,null,null,null,null,null,null,null,null,null,null,null,null,null,null,null,213,"-"]
[null,null,null,null,null,null,null,null,null,null,null,null,null,null,null,null,null,null,null,null,null,null,null,null,null,null,null,null,null,null,null,301,123]
[null,null,null,null,null,null,null,null,null,null,null,null,null,null,null,null,null,null,null,null,null,null,null,null,null,null,null,null,null,null,null,302,395]
[null,null,null,null,null,null,null,null,null,null,null,null,null,null,null,null,null,null,null,null,null,null,null,null,null,null,null,null,null,null,null,303,640]
[null,null,null,null,null,null,null,null,null,null,null,null,null,null,null,null,null,null,null,null,null,null,null,null,null,null,null,null,null,null,null,304,725]
[null,null,null,null,null,null,null,null,null,null,null,null,null,null,null,null,null,null,null,null,null,null,null,null,null,null,null,null,null,null,null,305,830]
[null,null,null,null,null,null,null,null,null,null,null,null,null,null,null,null,null,null,null,null,null,null,null,null,null,null,null,null,null,null,null,306,870]
[null,null,null,null,null,null,null,null,null,null,null,null,null,null,null,null,null,null,null,null,null,null,null,null,null,null,null,null,null,null,null,307,123]
[null,null,null,null,null,null,null,null,null,null,null,null,null,null,null,null,null,null,null,null,null,null,null,null,null,null,null,null,null,null,null,308,395]
[null,null,null,null,null,null,null,null,null,null,null,null,null,null,null,null,null,null,null,null,null,null,null,null,null,null,null,null,null,null,null,309,640]
[null,null,null,null,null,null,null,null,null,null,null,null,null,null,null,null,null,null,null,null,null,null,null,null,null,null,null,null,null,null,null,310,725]
[null,null,null,null,null,null,null,null,null,null,null,null,null,null,null,null,null,null,null,null,null,null,null,null,null,null,null,null,null,null,null,311,830]
[null,null,null,null,null,null,null,null,null,null,null,null,null,null,null,null,null,null,null,null,null,null,null,null,null,null,null,null,null,null,null,312,870]
[null,null,null,null,null,null,null,null,null,null,null,null,null,null,null,null,null,null,null,null,null,null,null,null,null,null,null,null,null,null,null,313,"-"]

{"sheet":"K8V","index":1,"n_rows":103,"n_cols":23,"rows_kept":103,"cut":false,"hidden":false,"merged":[[75,18,76,22],[88,5,88,15],[79,18,81,22],[79,17,81,17],[41,18,43,22],[75,1,76,3],[74,1,74,3],[79,4,81,4],[77,5,77,15],[78,5,78,15],[79,5,79,15],[80,5,80,15],[77,1,77,3],[75,4,76,4],[78,18,78,22],[77,18,77,22],[75,5,75,15],[74,18,74,22],[75,17,76,17],[41,17,43,17],[45,17,46,17],[47,17,49,17],[69,1,73,3],[66,1,68,3],[2,19,2,22],[5,19,5,22],[12,10,12,11],[8,17,8,18],[5,17,5,18],[2,17,2,18],[8,19,8,22],[15,18,15,21],[2,10,2,12],[5,10,5,12],[8,10,8,12],[11,10,11,11],[15,5,15,16],[2,1,2,5],[5,1,6,8],[7,1,8,8],[2,13,2,16],[5,13,5,16],[8,13,8,16],[11,1,12,1],[88,18,89,22],[81,5,81,15],[82,17,89,17],[82,18,87,22],[90,1,98,3],[90,4,98,4],[92,5,92,15],[90,5,90,15],[91,5,91,15],[90,17,98,17],[90,18,96,22],[85,5,85,15],[86,5,86,15],[82,1,89,3],[82,4,89,4],[87,5,87,15],[89,5,89,15],[93,5,93,15],[79,1,81,3],[102,18,102,22],[99,17,101,17],[100,5,100,15],[99,4,101,4],[102,1,102,3],[99,1,101,3],[97,18,98,22],[94,5,94,15],[95,5,95,15],[96,5,96,15],[98,5,98,15],[99,5,99,15],[97,5,97,15],[100,18,101,22],[99,18,99,22],[101,5,101,15],[17,11,17,16],[17,5,17,10],[22,1,22,3],[20,1,20,3],[19,11,19,16],[19,5,19,10],[20,5,20,10],[18,5,18,10],[102,5,102,15],[78,1,78,3],[41,4,43,4],[66,4,68,4],[24,17,24,22],[27,21,27,22],[28,21,28,22],[26,17,26,22],[31,12,31,22],[32,12,38,22],[45,18,46,22],[44,18,44,22],[14,1,14,3],[14,5,14,16],[14,17,14,22],[25,17,25,22],[23,1,23,3],[23,17,23,19],[23,20,23,21],[24,1,24,3],[24,5,24,16],[15,1,15,3],[21,1,21,3],[19,1,19,3],[16,1,16,3],[17,1,17,3],[16,5,16,10],[16,11,16,16],[29,17,29,22],[63,1,65,3],[40,18,40,22],[66,17,68,17],[31,1,31,11],[32,1,38,11],[46,5,46,15],[40,5,40,16],[41,5,41,15],[29,1,29,3],[45,4,46,4],[47,4,49,4],[45,1,46,3],[44,1,44,3],[69,17,73,17],[63,17,65,17],[63,18,65,22],[47,18,49,22],[66,18,68,22],[50,17,62,17],[59,5,59,15],[60,5,60,15],[67,5,67,15],[68,5,68,15],[72,18,73,22],[69,18,71,22],[61,18,62,22],[72,5,72,15],[73,5,73,15],[54,5,54,15],[47,5,47,15],[50,18,60,22],[74,5,74,15],[0,19,0,20],[64,12,64,15],[63,5,63,7],[63,8,63,11],[66,5,66,15],[76,5,76,15],[21,11,21,16],[23,5,23,10],[55,5,55,15],[27,5,27,16],[26,5,26,16],[58,5,58,15],[70,5,70,15],[65,5,65,7],[61,5,61,15],[62,5,62,15],[64,5,64,7],[64,8,64,11],[63,12,63,15],[48,5,48,15],[49,5,49,15],[50,5,50,15],[28,5,28,16],[69,4,73,4],[63,4,65,4],[51,5,51,15],[52,5,52,15],[53,5,53,15],[65,8,65,11],[65,12,65,15],[71,5,71,15],[56,5,56,15],[57,5,57,15],[69,5,69,15],[21,5,21,10],[18,11,18,16],[20,11,20,16],[50,4,62,4],[50,1,62,3],[42,5,42,15],[43,5,43,15],[44,5,44,15],[45,5,45,15],[22,5,22,16],[23,11,23,16],[40,1,40,3],[18,1,18,3],[41,1,43,3],[47,1,49,3],[25,5,25,16],[29,5,29,16],[28,1,28,3],[27,1,27,3],[25,1,25,3],[26,1,26,3]]}
[null,null,null,null,null,null,null,null,null,null,null,null,null,null,null,null,null,null,null,"Language : English",null,null,"Rev: 6"]
[]
[null,"K8V series Inquiry Form",null,null,null,null,null,null,null,null,"Fill-in Date ：",null,null,null,null,null,null,"Author ："]
[]
[]
[null,"Please select an item from a drop down list in a cell with thick red borders. Options with ★ are under development. If it is chosen, the cell's color changes to yellow.",null,null,null,null,null,null,null,null,"Application ：",null,null,null,null,null,null,"Machine Model ："]
[]
[null,"If the cell's color is red, the request is out of Kawasaki standard specification range. Even if the request is out of Kawasaki specification range, please describe the detail on the note and consult with Kawasaki."]
[null,null,null,null,null,null,null,null,null,null,"Customer ：",null,null,null,null,null,null,"Pump Model ：",null,{"$f":"C13&D13&E13&F13&G13&H13&I13&J13&K13&M13&N13&O13&P13&Q13&R13&S13&T13&U13&V13&W13","v":"K8V71BRC1A1AAAXXXX-P1BABA01"}]
[]
[null,"Swash Plate Type Axial Piston Pump"]
[null,"Model Code",1,2,3,4,5,6,7,8,9,null,10,11,12,13,null,14,15,16,17,null,18]
[null,null,"K8V",{"$f":"IF(R42<>\"\",R42,\"\")","v":71},"B",{"$f":"IF(R46<>\"\",R46,\"\")","v":"R"},{"$f":"IF(R48<>\"\",R48,\"\")","v":"C1"},{"$f":"IF(R51<>\"\",R51,\"\")","v":"A1"},{"$f":"IF(R64<>\"\",R64,\"\")","v":"A"},{"$f":"IF(R67<>\"\",R67,\"\")","v":"A"},{"$f":"IF(R70<>\"\",R70,\"\")","v":"A"},null,{"$f":"IF(R75<>\"\",R75,\"\")","v":"X"},{"$f":"IF(R76<>\"\",R76,\"\")","v":"X"},{"$f":"IF(R78<>\"\",R78,\"\")","v":"X"},"X","-",{"$f":"IF(R80<>\"\",R80,\"\")","v":"P1"},{"$f":"IF(R83<>\"\",R83,\"\")","v":"B"},{"$f":"IF(R91<>\"\",R91,\"\")","v":"A"},{"$f":"IF(R100<>\"\",R100,\"\")","v":"B"},"A",{"$f":"IF(R103<>\"\",R103,\"\")","v":"01"}]
[]
[null,"Items",null,null,"No.","Standard Specification",null,null,null,null,null,null,null,null,null,null,null,"Customer Specification"]
[null,"Pump Max Displacement",null,null,"---",{"$f":"IF(R75=\"A\",\"Max Displacement: \"&TEXT(spec!AA116,\"0\")&\" \"&\"-\" &\" \"&TEXT(spec!AB116,\"0\")&\" \"&\"cm3 (In case Code A is selected at [10])\",TEXT(spec!AA116,\"0\")&\" \"&\"cm3\")","v":"71 cm3"},null,null,null,null,null,null,null,null,null,null,null,"Max Disp:",null,null,null,null,"cm3"]
[null,"Max / Rated Speed",null,null,"---",{"$f":"IF(T1=\"Language : English\",\"Max: Up to \"&TEXT(spec!AD116,\"0\")&\" \"&\"min-1\",\"最高回転数: \"&TEXT(spec!AD116,\"0\")&\" \"&\"min-1 まで\")","v":"Max: Up to 4100 min-1"},null,null,null,null,null,{"$f":"IF(T1=\"Language : English\",\"Rated: Up to \"&TEXT(spec!AC116,\"0\")&\" \"&\"min-1\",\"定格圧力: \"&TEXT(spec!AC116,\"0\")&\" \"&\"min-1 まで\")","v":"Rated: Up to 3300 min-1"},null,null,null,null,null,"Max:",null,"min-1","Rated:",null,"min-1"]
[null,"Peak / Rated Pressure",null,null,"---",{"$f":"IF(T1=\"Language : English\",\"Peak: Up to \"&TEXT(spec!AH116,\"0\")&\" \"&\"MPa\",\"ピーク圧力: \"&TEXT(spec!AH116,\"0\")&\" \"&\"MPa まで\")","v":"Peak: Up to 50 MPa"},null,null,null,null,null,{"$f":"IF(T1=\"Language : English\",\"Peak: Up to \"&TEXT(spec!AG116,\"0\")&\" \"&\"MPa\",\"定格回転数: \"&TEXT(spec!AG116,\"0\")&\" \"&\"MPa まで\")","v":"Peak: Up to 42 MPa"},null,null,null,null,null,"Peak:",null,"MPa","Rated:",null,"MPa"]
[null,"Set Pressure of High Pressure Relief / Pressure Cut-Off Valve",null,null,"---",{"$f":"IF(T1=\"Language : English\",\"High Pressure Relief Valve: 30 - 50 MPa\",\"高圧リリーフ: 30 - 50 MPa\")","v":"High Pressure Relief Valve: 30 - 50 MPa"},null,null,null,null,null,"Pressure Cut-Off Valve: 30 - 42MPa(High press. relief set press. ≧ Press. cut-off valve set press. + 5 MPa)",null,null,null,null,null,"HP Relief:",null,"MPa","Cut-Off:",null,"MPa"]
[null,"Set Pressure of Low Pressure Relief Valve / Charge Pump Suction Pressure",null,null,"---","Low Pressure Relief Valve: 2.5 - 3.0 MPa (at 2000 min-1 Operating Speed Condition)",null,null,null,null,null,"The suction pressure has to be greater or equal to 0 MPa gauge at rated operating speed ",null,null,null,null,null,"LP Relief:",null,"MPa","Suction:",null,"MPa"]
[null,"Pump / Through Drive Input Torque",null,null,"---",{"$f":"IF(T1=\"Language : English\",\"Pump(Containing Charge Pump + T/D Pump)Torque: Up to\"&\" \"&TEXT(spec!AA118,\"0\")&\" \"&\"Nm\",\"ポンプ(チャージポンプ + スルードライブポンプを含む)トルク: \"&\" \"&TEXT(spec!AA118,\"0\")&\" \"&\"Nm まで\")","v":"Pump(Containing Charge Pump + T/D Pump)Torque: Up to 600 Nm"},null,null,null,null,null,{"$f":"IF(T1=\"Language : English\",\"Through Drive Pump: Up to\"&\" \"&TEXT(spec!AG118,\"0\")&\" \"&\"Nm\",\"スルードライブポンプ:\"&\" \"&TEXT(spec!AG118,\"0\")&\" \"&\"Nmまで\")","v":"Through Drive Pump: Up to 123 Nm"},null,null,null,null,null,"Pump:",null,"Nm","T/D:",null,"Nm"]
[null,"Case Drain Pressure",null,null,"---","Continuous: Up to 0.2 MPa",null,null,null,null,null,"Peak: Up to 0.6 MPa",null,null,null,null,null,"Cont:",null,"MPa","Peak:",null,"MPa"]
[null,"Oil Temperature Range (Inlet)",null,null,"---","-20 ～ 95 ℃ (Drain temperature: up to Max 115℃ momentarily)",null,null,null,null,null,null,null,null,null,null,null,"Operating:",null,"℃","Intermittent:",null,"℃"]
[null,"Oil Type / Oil Viscosity Range",null,null,"---","Equivalent to ISO VG46",null,null,null,null,null,"10 ～ 1,000 mm2/s(cSt)",null,null,null,null,null,null,null,null,null,null,"mm2/s(cSt)"]
[null,"Name Plate",null,null,"---","KHI Standard (Supplier Name, Model Code and S/N)"]
[null,"Paint",null,null,"---","KHI Standard (Act Primer Red Brown)"]
[null,"Customer Part Number",null,null,"---"]
[null,"Proto Type Requirement",null,null,"---",null,null,null,null,null,null,null,null,null,null,null,null,"Qty's:",null,"pcs","Due date:"]
[null,"Production Schedule",null,null,"---",null,null,null,null,null,null,null,null,null,null,null,null,"Qty's:",null,"pcs/years","Start date:"]
[null,"Original Pump Model(Competitor)",null,null,"---","If the model of original pump can be found, please write down for a reference"]
[]
[null,"Comments (Other requirements)",null,null,null,null,null,null,null,null,null,null,"Operating condition, Duty cycle etc. (Describe your detail)"]
[]
[]
[]
[]
[]
[]
[]
[]
[null,"Items",null,null,"No.","Standard Specification",null,null,null,null,null,null,null,null,null,null,null,"Code","Note"]
[null,"Pump Size",null,null,2," 71",null,null,null,null,null,null,null,null,null,null,null,71]
[null,null,null,null,null," 90"]
[null,null,null,null,null," 125"]
[null,"Model Code",null,null,3," B ： Series B",null,null,null,null,null,null,null,null,null,null,null,"B"]
[null,"Direction of Rotation",null,null,4," R ： Clockwise",null,null,null,null,null,null,null,null,null,null,null,"R"]
[null,null,null,null,null," L ： Counterclockwise"]
[null,"Mounting Flange and Shaft",null,null,5," C1 ： SAE‐C Mount & SAE‐C Shaft  (14T-12/24DP) (for K8V71)",null,null,null,null,null,null,null,null,null,null,{"$f":"IF($R$46<>\"\",IF(spec!AA21=\"○\",\"★\",\"\"))","v":""},"C1"]
[null,null,null,null,null," D1 ： SAE‐D Mount & SAE‐D Shaft  (13T-8/16DP) (for K8V90/125)",null,null,null,null,null,null,null,null,null,null,{"$f":"IF($R$46<>\"\",IF(spec!AA22=\"○\",\"★\",\"\"))","v":""}]
[null,null,null,null,null," D2 ： SAE‐D Mount & SAE‐F Shaft  (15T-8/16DP)  (for K8V125)",null,null,null,null,null,null,null,null,null,null,{"$f":"IF($R$46<>\"\",IF(spec!AA23=\"○\",\"★\",\"\"))","v":""}]
[null,"Through Drive",null,null,6," A1 ： SAE‐A, 2 bolt, Through Drive (9T-16/32DP)",null,null,null,null,null,null,null,null,null,null,{"$f":"IF($R$51<>\"\",IF(spec!AA26=\"○\",\"★\",\"\"))","v":""},"A1"]
[null,null,null,null,null," B1 ： SAE‐B, 2 bolt, Through Drive (13T-16/32DP)",null,null,null,null,null,null,null,null,null,null,{"$f":"IF($R$51<>\"\",IF(spec!AA27=\"○\",\"★\",\"\"))","v":""}]
[null,null,null,null,null," B2 ： SAE‐BB, 2 bolt, Through Drive (15T-16/32DP)",null,null,null,null,null,null,null,null,null,null,{"$f":"IF($R$51<>\"\",IF(spec!AA28=\"○\",\"★\",\"\"))","v":""}]
[null,null,null,null,null," C1 ： SAE‐C, 2/4 bolt, Through Drive (14T-12/24DP)",null,null,null,null,null,null,null,null,null,null,{"$f":"IF($R$51<>\"\",IF(spec!AA29=\"○\",\"★\",\"\"))","v":""}]
[null,null,null,null,null," C2 ： SAE‐CC, 2/4 bolt, Through Drive (17T-12/24DP) (for K8V90/125)",null,null,null,null,null,null,null,null,null,null,{"$f":"IF($R$51<>\"\",IF(spec!AA30=\"○\",\"★\",\"\"))","v":""}]
[null,null,null,null,null," D1 ： SAE‐D, 2/4 bolt, Through Drive (13T-8/16DP) (for K8V90/125)",null,null,null,null,null,null,null,null,null,null,{"$f":"IF($R$51<>\"\",IF(spec!AA31=\"○\",\"★\",\"\"))","v":""}]
[null,null,null,null,null," AJ ： SAE‐A, 2 bolt, Through Drive (9T-16/32DP) Covered with Steel Plate",null,null,null,null,null,null,null,null,null,null,{"$f":"IF($R$51<>\"\",IF(spec!AA32=\"○\",\"★\",\"\"))","v":""}]
[null,null,null,null,null," BJ ： SAE‐B, 2 bolt, Through Drive (13T-16/32DP) Covered with Steel Plate",null,null,null,null,null,null,null,null,null,null,{"$f":"IF($R$51<>\"\",IF(spec!AA33=\"○\",\"★\",\"\"))","v":""}]
[null,null,null,null,null," BK ： SAE‐BB, 2 bolt, Through Drive (15T-16/32DP) Covered with Steel Plate",null,null,null,null,null,null,null,null,null,null,{"$f":"IF($R$51<>\"\",IF(spec!AA34=\"○\",\"★\",\"\"))","v":""}]
[null,null,null,null,null," CJ ： SAE-C,  2/4 bolt, Through Drive (14T-12/24DP ) Covered with Steel Plate",null,null,null,null,null,null,null,null,null,null,{"$f":"IF($R$51<>\"\",IF(spec!AA35=\"○\",\"★\",\"\"))","v":""}]
[null,null,null,null,null," CK ： SAE-CC, 2/4 bolt, Through Drive (17T-12/24DP) (for K8V90/125) Covered with Steel Plate",null,null,null,null,null,null,null,null,null,null,{"$f":"IF($R$51<>\"\",IF(spec!AA36=\"○\",\"★\",\"\"))","v":""}]
[null,null,null,null,null," DJ ： SAE-D, 2/4 bolt, Through Drive (13T-8/16DP) (for K8V90/125) Covered with Steel Plate",null,null,null,null,null,null,null,null,null,null,{"$f":"IF($R$51<>\"\",IF(spec!AA37=\"○\",\"★\",\"\"))","v":""},null,{"$f":"IF(NOT(R51=\"X\"),IF(T1=\"Language : English\",\"Please specify the input torque from through drive.\",\"スルードライブからの入力トルクを指定してください。\"),\"\")","v":"Please specify the input torque from through drive."}]
[null,null,null,null,null," X ： Without Through Drive",null,null,null,null,null,null,null,null,null,null,{"$f":"IF($R$51<>\"\",IF(spec!AA38=\"○\",\"★\",\"\"))","v":""}]
[null,"Thread Type",null,null,7,"Threaded Port",null,null,"Flange Port",null,null,null,"Flange Through Drive",null,null,null,null,"A"]
[null,null,null,null,null," A ： Unified",null,null," Metric",null,null,null," Metric",null,null,null,{"$f":"IF($R$64<>\"\",IF(spec!AA42=\"○\",\"★\",\"\"))","v":""}]
[null,null,null,null,null," C ： Unified",null,null," Unified",null,null,null," Unified",null,null,null,{"$f":"IF($R$64<>\"\",IF(spec!AA43=\"○\",\"★\",\"\"))","v":""}]
[null,"Charge Pump",null,null,8," A ： 20cm3　(K8V71/90)",null,null,null,null,null,null,null,null,null,null,{"$f":"IF($R$67<>\"\",IF(spec!AA46=\"○\",\"★\",\"\"))","v":""},"A",{"$f":"IF(AND($R$67=\"X\",R76<>\"X\"),IF(T1=\"Language : English\",\"Please chose X at code [11] as well, in case code X is selected at [8].\",\"コード[8]でXを選んだ場合、コード[11]でもXを選んでください。\"),\"\")","v":""}]
[null,null,null,null,null," B ： 28cm3",null,null,null,null,null,null,null,null,null,null,{"$f":"IF($R$67<>\"\",IF(spec!AA47=\"○\",\"★\",\"\"))","v":""}]
[" ",null,null,null,null," X ： Without Charge Pump",null,null,null,null,null,null,null,null,null,null,{"$f":"IF($R$67<>\"\",IF(spec!AA48=\"○\",\"★\",\"\"))","v":""}]
[null,"Stroking Speed Control Orifice",null,null,9," A ： Φ0.8 (for K8V71/125)",null,null,null,null,null,null,null,null,null,null,{"$f":"IF($R$70<>\"\",IF(spec!AA51=\"○\",\"★\",\"\"))","v":""},"A"]
[null,null,null,null,null," B ： Φ1.0",null,null,null,null,null,null,null,null,null,null,{"$f":"IF($R$70<>\"\",IF(spec!AA52=\"○\",\"★\",\"\"))","v":""}]
[null,null,null,null,null," C ： Φ1.2",null,null,null,null,null,null,null,null,null,null,{"$f":"IF($R$70<>\"\",IF(spec!AA53=\"○\",\"★\",\"\"))","v":""}]
[null,null,null,null,null," D ： Φ1.4 (for K8V90)",null,null,null,null,null,null,null,null,null,null,{"$f":"IF($R$70<>\"\",IF(spec!AA54=\"○\",\"★\",\"\"))","v":""},null,{"$f":"IF(AND($R$70=\"X\",R91<>\"X\"),IF(T1=\"Language : English\",\"Please chose code X at [16] as well, in case code X is selected at [9].\",\"コード[9]でXを選んだ場合、コード[16]でもXを選んでください。\"),\"\")","v":""}]
[null,null,null,null,null," X ： Without Orifice  (Available Only with Code X of Low Pressure Relief Valve at [16])",null,null,"　Available Only with Code X of Low Pressure Relief Valve [16]",null,null,null,null,null,null,null,{"$f":"IF($R$70<>\"\",IF(spec!AA55=\"○\",\"★\",\"\"))","v":""}]
[null,"Mechanical Stroke Limiter",null,null,10," X ： Without Mechanical Stroke Limiter",null,null,null,null,null,null,null,null,null,null,{"$f":"IF($R$75<>\"\",IF(spec!AA58=\"○\",\"★\",\"\"))","v":""},"X"]
[null,"Filtration System  (When the code X is selected at [8], the code X must be selected at [11])",null,null,11," B ： Remote Pressure Filtration with Ports for External Charge Circuit Filter",null,null,null,null,null,null,null,null,null,null,null,"X"]
[null,null,null,null,null," X ： Without Pressure Filtration"]
[null,"Swivel Angle Sensor",null,null,12," X ： Without Swivel Angle Sensor",null,null,null,null,null,null,null,null,null,null,null,"X"]
[null,"Special Features",null,null,13," X ： Without Any Special Feature",null,null,null,null,null,null,null,null,null,null,null,"X"]
[null,"Control Options",null,null,14," P1 ： Electronic Proportional Displacement Control (24V)",null,null,null,null,null,null,null,null,null,null,{"$f":"IF($R$70<>\"\",IF(spec!AA78=\"○\",\"★\",\"\"))","v":""},"P1"]
[null,null,null,null,null," P2 ： Electronic Proportional Displacement Control (12V)",null,null,null,null,null,null,null,null,null,null,{"$f":"IF($R$70<>\"\",IF(spec!AA79=\"○\",\"★\",\"\"))","v":""}]
[null,null,null,null,null," P3 ： Hydraulic  Proportional Displacement Control",null,null,null,null,null,null,null,null,null,null,{"$f":"IF($R$70<>\"\",IF(spec!AA80=\"○\",\"★\",\"\"))","v":""}]
[null,"High Pressure Relief Valve",null,null,15," K ： 20MPa",null,null,null,null,null,null,null,null,null,null,{"$f":"IF($R$70<>\"\",IF(spec!AA83=\"○\",\"★\",\"\"))","v":""},"B"]
[null,null,null,null,null," L ： 25MPa",null,null,null,null,null,null,null,null,null,null,{"$f":"IF($R$70<>\"\",IF(spec!AA84=\"○\",\"★\",\"\"))","v":""}]
[null,null,null,null,null," A ： 30MPa",null,null,null,null,null,null,null,null,null,null,{"$f":"IF($R$70<>\"\",IF(spec!AA85=\"○\",\"★\",\"\"))","v":""}]
[null,null,null,null,null," B ： 35MPa",null,null,null,null,null,null,null,null,null,null,{"$f":"IF($R$70<>\"\",IF(spec!AA86=\"○\",\"★\",\"\"))","v":""}]
[null,null,null,null,null," C ： 40MPa",null,null,null,null,null,null,null,null,null,null,{"$f":"IF($R$70<>\"\",IF(spec!AA87=\"○\",\"★\",\"\"))","v":""}]
[null,null,null,null,null," D ： 45MPa",null,null,null,null,null,null,null,null,null,null,{"$f":"IF($R$70<>\"\",IF(spec!AA88=\"○\",\"★\",\"\"))","v":""}]
[null,null,null,null,null," E ： 50MPa",null,null,null,null,null,null,null,null,null,null,{"$f":"IF($R$70<>\"\",IF(spec!AA89=\"○\",\"★\",\"\"))","v":""},null,{"$f":"IF(T1=\"Language : English\",IF(R83=\"S\",\"Please specify the High pressure relief valve set pressure.\",IF(spec!AD102=1,\"Please choose greater set of pressure at code [15] than set of pressure at code [16].\",\"\")),IF(R83=\"S\",\"高圧リリーフ弁の圧力を指定してください。\",IF(spec!AD102=1,\"コード[16]での圧力セットよりもコード[15]での圧力セットが高くなるように選んでください。\",\"\")))","v":""}]
[null,null,null,null,null," S ： Customized Pressure Setting for Special Case",null,null,null,null,null,null,null,null,null,null,{"$f":"IF($R$70<>\"\",IF(spec!AA90=\"○\",\"★\",\"\"))","v":""}]
[null,"Pressure Cut-Off Valve(High pressure relief set pressure ≧ Pressure cut-off valve set pressure + 5 MPa)",null,null,16," J ： 15MPa",null,null,null,null,null,null,null,null,null,null,{"$f":"IF($R$70<>\"\",IF(spec!AA91=\"○\",\"★\",\"\"))","v":""},"A"]
[null,null,null,null,null," K ： 20MPa",null,null,null,null,null,null,null,null,null,null,{"$f":"IF($R$70<>\"\",IF(spec!AA92=\"○\",\"★\",\"\"))","v":""}]
[null,null,null,null,null," L ： 25MPa",null,null,null,null,null,null,null,null,null,null,{"$f":"IF($R$70<>\"\",IF(spec!AA93=\"○\",\"★\",\"\"))","v":""}]
[null,null,null,null,null," A ： 30MPa",null,null,null,null,null,null,null,null,null,null,{"$f":"IF($R$70<>\"\",IF(spec!AA97=\"○\",\"★\",\"\"))","v":""}]
[null,null,null,null,null," B ： 35MPa",null,null,null,null,null,null,null,null,null,null,{"$f":"IF($R$70<>\"\",IF(spec!AA98=\"○\",\"★\",\"\"))","v":""}]
[null,null,null,null,null," C ： 40MPa",null,null,null,null,null,null,null,null,null,null,{"$f":"IF($R$70<>\"\",IF(spec!AA99=\"○\",\"★\",\"\"))","v":""}]
[null,null,null,null,null," D ： 42MPa",null,null,null,null,null,null,null,null,null,null,{"$f":"IF($R$70<>\"\",IF(spec!AA100=\"○\",\"★\",\"\"))","v":""}]
[null,null,null,null,null," S ： Customized Pressure Setting for Special Case",null,null,null,null,null,null,null,null,null,null,{"$f":"IF($R$70<>\"\",IF(spec!AA101=\"○\",\"★\",\"\"))","v":""},null,{"$f":"IF(T1=\"Language : English\",IF(R91=\"S\",\"Please specify the Pressure cut-off valve set pressure.\",\"\"),IF(R91=\"S\",\"カットオフ弁の圧力を指定してください。\",\"\"))","v":""}]
[null,null,null,null,null," X ： Without Pressure Cut-Off Valve",null,null,null,null,null,null,null,null,null,null,{"$f":"IF($R$70<>\"\",IF(spec!AA102=\"○\",\"★\",\"\"))","v":""}]
[null,"Low Pressure Relief Valve",null,null,17," B ： 2.5MPa  (at 2000 min-1 Operating Speed Condition)",null,null,null,null,null,null,null,null,null,null,{"$f":"IF($R$70<>\"\",IF(spec!AA105=\"○\",\"★\",\"\"))","v":""},"B"]
[null,null,null,null,null," S ： Customized Pressure Setting for Special Case",null,null,null,null,null,null,null,null,null,null,{"$f":"IF($R$70<>\"\",IF(spec!AA106=\"○\",\"★\",\"\"))","v":""},null,{"$f":"IF(R100=\"S\",\"Please specify the Low pressure relief valve set pressure.\",\"\")","v":""}]
[null,null,null,null,null," X ： Without Low Pressure Relief Valve",null,null,null,null,null,null,null,null,null,null,{"$f":"IF($R$70<>\"\",IF(spec!AA107=\"○\",\"★\",\"\"))","v":""}]
[null,"Design Code",null,null,18," ** ： 01～",null,null,null,null,null,null,null,null,null,null,null,"01"]

{"sheet":"note","index":2,"n_rows":21,"n_cols":6,"rows_kept":21,"cut":false,"hidden":true,"merged":[]}
[]
[]
[]
[]
[]
[]
[]
[]
[]
[]
[]
[]
[]
[]
[]
[]
[]
[]
[]
[]
[null,null,null,null,null," "]